Cogmind - Beta 13 *** ADVENTURER MODE // 2024.04.19 @ 21:18:52 Player: afilthyscrub Result: Destroyed by L-31 Rogue with Katana Performance ------------- Evolutions (1) 500 Regions Visited (2) 400 Robots Destroyed (27) 135 Value Destroyed (793) 793 Prototype IDs (3) 60 Alien Tech Used (0) 0 Bonus (0) 0 TOTAL SCORE: 1888 Bonus ------- None Cogmind --------- Core Integrity 0/400 Matter 275/300 Energy 100/100 System Corruption 0% Temperature Cool (0) Movement Core (1350) Ox26 Location -9/Materials Parts ------- > --- POWER (1) -------- (None) > --- PROPULSION (2) --- (None) > --- UTILITY (2) ------ Huge Storage Unit > --- WEAPON (4) ------- (None) > --- INVENTORY (25) --- Backup Power I Peak State ------------ > --- POWER ------------ Ion Engine > --- PROPULSION ------- Aluminum Leg Aluminum Leg > --- UTILITY ---------- Huge Storage Unit Backup Plating I > --- WEAPON ----------- Small Laser Small Laser Small Laser Light Assault Rifle > --- INVENTORY -------- Light Ion Engine Backup Power I Hover Unit Small Battery [Rating: 9] Favorites ----------- Power Ion Engine Engine Ion Engine Propulsion Aluminum Leg Leg Aluminum Leg Hover Unit Hover Unit Utility Huge Storage Unit Storage Huge Storage Unit Protection Backup Plating I Weapon Small Laser Energy Gun Small Laser Ballistic Gun Light Assault Rifle Build | -11 -10 -9 ------- Run | Yrd Mat Mat Slots Evolved 2 | . . 2 Power . | . . . Propulsion . | . . . Utility . | . . . Weapon 2 | . . 2 Parts Attached 22 | 5 6 11 Power 7 | 1 1 5 Engine 7 | 1 1 5 Core . | . . . Reactor . | . . . Propulsion 5 | 2 2 1 Treads . | . . . Leg 4 | 2 2 . Wheel . | . . . Hover 1 | . . 1 Flight . | . . . Utility 4 | . 1 3 Device . | . . . Storage 3 | . 1 2 Processor . | . . . Hackware . | . . . Protection 1 | . . 1 Artifact . | . . . Weapon 6 | 2 2 2 Energy Gun 5 | 2 1 2 Energy Cannon . | . . . Ballistic Gun 1 | . 1 . Ballistic Cannon . | . . . Launcher . | . . . Special Weapon . | . . . Impact Weapon . | . . . Slashing Weapon . | . . . Piercing Weapon . | . . . Special Melee Weapon . | . . . Unidentified Prototypes . | . . . Parts Lost 9 | . 1 8 Power 2 | . . 2 Propulsion 1 | . . 1 Utility 1 | . . 1 Weapon 5 | . 1 4 Highest Loss Streak 5 | . 1 5 To Critical Strikes . | . . . Average Slot Usage (%) 82 | . 77 85 Engine 11 | . 14 9 Leg 24 | . 28 21 Storage 11 | . 7 15 Protection 3 | . . 5 Energy Gun 20 | . 16 22 Ballistic Gun 10 | . 10 10 Naked Turns . | . . . Heaviest Build 90 | 6 87 90 Greatest Support 20 | 20 20 20 Greatest Overweight (x) 27 | . 4 27 Average Overweight (x) 2 | . 1 4 Largest Inventory Capacity 25 | 5 25 25 Average Capacity 18 | 5 15 23 Most Carried 5 | 2 5 5 Average Carried 2 | . 2 3 Final Capacity 25 | 5 25 25 Final Carried 3 | 1 3 1 Class Distribution -------------------- 35% | Mutant 29% | Scavenger-Tank 19% | Scavenger-Mutant 15% | Scavenger-Gunner Dominant Class ---------------- Mutant | -10/Materials Scavenger-Tank | -9/Materials Resources | -11 -10 -9 ----------- Run | Yrd Mat Mat Matter Collected 475 | 250 65 160 Remotely . | . . . Salvage Created 945 | 34 300 611 Parts 48 | 2 12 34 Haulers Intercepted . | . . . Recyclers Shooed 1 | . . 1 Parts Field Recycled . | . . . Retrieved Matter . | . . . Parts Self-Destructed . | . . . Prevented . | . . . Kills | -11 -10 -9 ------- Run | Yrd Mat Mat Combat Hostiles Destroyed 23 | 1 9 13 Guns 23 | 1 9 13 Classes Destroyed 5 | 1 1 3 Worker 2 | . . 2 Watcher 2 | . . 2 Swarmer 3 | . 3 . Grunt 19 | 1 6 12 Duelist 1 | . . 1 Best Kill Streak 7 | 1 3 7 Combat Bots Only 5 | 1 3 5 Max Kills in Single Turn 3 | 1 1 3 Gunslinging . | . . . Exploded . | . . . Melee . | . . . Uniques/NPCs Destroyed . | . . . Combat | -11 -10 -9 -------- Run | Yrd Mat Mat Hostile Shots Fired 131 | 2 62 67 Missed 32 | . 17 15 Damage Taken 1169 | 18 361 790 Core 484 | . 80 404 Absorbed by Shields . | . . . Ignored by Resistances 349 | 6 116 227 Regen/Repaired (Parts) 14 | . . 14 Core Remaining (%) 84 | 100 68 . Volleys Fired 65 | 2 33 30 Largest 4 | 2 2 4 Hottest 140 | 80 80 140 Shots Fired 162 | 4 56 102 Gun 162 | 4 56 102 Cannon . | . . . Launcher . | . . . Special . | . . . Kinetic 41 | . 11 30 Thermal 108 | 2 34 72 Explosive . | . . . Electromagnetic 13 | 2 11 . Robot Hit Streak 18 | 3 9 18 Robot Miss Streak 3 | 1 3 2 Penetration Max . | . . . Secondary Targets 6 | . 2 4 Max Gunslinging Chain 1 | . 1 1 Shots Hit Robots 117 | 3 40 74 Core Hits 56 | 2 19 35 Critical Kills . | . . . Critical Parts Destroyed . | . . . Critical Strikes . | . . . Melee Attacks . | . . . Impact . | . . . Slashing . | . . . Piercing . | . . . Sneak Attacks . | . . . Combat Hostiles . | . . . Follow-up Attacks . | . . . Damage Inflicted 1296 | 33 453 810 Guns 1263 | 33 421 809 Cannons . | . . . Explosions 29 | . 29 . Melee . | . . . Ramming 4 | . 3 1 Kinetic 247 | . 57 190 Thermal 965 | 20 326 619 Explosive . | . . . Electromagnetic 80 | 13 67 . Impact . | . . . Slashing . | . . . Piercing . | . . . Highest Corruption . | . . . Average Corruption . | . . . Corruption Purged . | . . . Corruption Blocked . | . . . Overload Shots . | . . . Overflow Damage . | . . . Projectiles . | . . . Explosions . | . . . Melee . | . . . Knockbacks . | . . . Impact . | . . . Kinetic . | . . . Secondary . | . . . Self-Inflicted Damage . | . . . Shots . | . . . Rammed . | . . . Targets Rammed 2 | . 1 1 Kicked 2 | . 1 1 Crushed . | . . . Highest Temperature 508 | 48 186 508 Average Temperature 99 | 28 67 124 Received Heat Transfer 525 | 12 234 279 Effects 13 | . . 13 Shutdowns 1 | . . 1 Matter Decay 1 | . . 1 Short Circuit 1 | . . 1 Damage (minor) 1 | . . 1 Damage (major) 9 | . . 9 Siege Activations . | . . . Robots Corrupted . | . . . Combat Hostiles . | . . . Parts Fried . | . . . Impact Corruptions . | . . . Robots Melted . | . . . Combat Hostiles . | . . . Parts Melted 3 | 1 . 2 Heat Transferred 2250 | 50 775 1425 Parts Sabotaged . | . . . Parts Stolen . | . . . Parts Stripped . | . . . Power Chain Reactions 1 | . 1 . Alert | -11 -10 -9 ------- Run | Yrd Mat Mat Peak Influence 242 | 20 233 242 Initial 16 | . 11 16 Average 98 | 2 114 97 Maximum Alert Level 1 | . 1 1 Low Security (%) 88 | 100 90 85 Level 1 11 | . 9 14 Level 2 . | . . . Level 3 . | . . . Level 4 . | . . . Level 5 . | . . . High Security . | . . . Max Security . | . . . Squads Dispatched 2 | . 1 1 Investigation 2 | . 1 1 Extermination . | . . . Reinforcement . | . . . Assault . | . . . Garrison . | . . . Intercept . | . . . Searches Triggered . | . . . Construction Impeded . | . . . Haulers Reinforced . | . . . Active Scanning Responses . | . . . Cargo Convoy Interrupts . | . . . Stealth | -11 -10 -9 --------- Run | Yrd Mat Mat Distress Signals 5 | . 1 4 Communications Jammed . | . . . Distress Signals . | . . . Times Spotted 37 | 1 14 22 Peak Tracking Total 5 | 1 4 5 Tactical Retreats 1 | . . 1 Traps | -11 -10 -9 ------- Run | Yrd Mat Mat Traps Triggered . | . . . Indirectly . | . . . Trap Hack Attempts . | . . . Triggered . | . . . Disarmed . | . . . Reprogrammed . | . . . Reused . | . . . Traps Extracted . | . . . Installed . | . . . Triggered . | . . . Machines | -11 -10 -9 ---------- Run | Yrd Mat Mat Machines Disabled 1 | . 1 . Max in Single Turn 1 | . 1 . Machines Repaired . | . . . Machines Dismantled . | . . . Machines Sabotaged . | . . . Overloaded Fab Kills . | . . . Hacking | -11 -10 -9 --------- Run | Yrd Mat Mat Machines Accessed 4 | . 2 2 Terminals 2 | . 2 . Fabricators . | . . . Repair Stations 1 | . . 1 Recycling Units . | . . . Scanalyzers 1 | . . 1 Garrison Access . | . . . Total Hacks 11 | . 5 6 Successful 9 | . 4 5 Failed 2 | . 1 1 Catastrophic . | . . . Database Lockouts . | . . . Manual . | . . . Terminals 5 | . 5 . Fabricators . | . . . Repair Stations 3 | . . 3 Recycling Units . | . . . Scanalyzers 3 | . . 3 Garrison Access . | . . . Terminal Hacks 4 | . 4 . Record 1 | . 1 . Prototype ID Bank 1 | . 1 . Maintenance Status 1 | . 1 . Investigation Status 1 | . 1 . Fabricator Hacks . | . . . Repair Station Hacks 3 | . . 3 Scan Component 1 | . . 1 Repair 1 | . . 1 Refit 1 | . . 1 Recycling Unit Hacks . | . . . Scanalyzer 2 | . . 2 Insert Component 2 | . . 2 Garrison Access Hacks . | . . . Unauthorized Hacks . | . . . Terminals . | . . . Fabricators . | . . . Repair Stations . | . . . Recycling Units . | . . . Scanalyzers . | . . . Garrison Access . | . . . Data Cores Recovered . | . . . Used . | . . . Hacking Detections 3 | . 1 2 Full Trace Events 2 | . 1 1 Feedback Events . | . . . Feedback Blocked . | . . . Robot Schematics Acquired . | . . . Robots Built . | . . . Authchips . | . . . Time . | . . . Total Robot Build Rating . | . . . Part Schematics Acquired . | . . . Parts Built . | . . . Authchips . | . . . Time . | . . . Total Part Build Rating . | . . . Parts Repaired 1 | . . 1 Time 26 | . . 26 Parts Recycled . | . . . Recycled Matter . | . . . Retrieved Matter . | . . . Retrieved Components . | . . . Parts Scanalyzed 1 | . . 1 Part Schematics Acquired . | . . . Parts Damaged . | . . . Bothacking | -11 -10 -9 ------------ Run | Yrd Mat Mat Used RIF Installer . | . . . Robots Hacked . | . . . Non-combat . | . . . Combat . | . . . Robot Hacks Applied . | . . . Relay Couplers Released . | . . . Fabnet Peak Effective % . | . . . Robots Rewired . | . . . Allies Hacked . | . . . Hacks Repelled . | . . . Allies | -11 -10 -9 -------- Run | Yrd Mat Mat Total Allies . | . . . Largest Group . | . . . Highest-Rated Group . | . . . Highest-Rated Ally . | . . . Total Orders . | . . . Ally Attacks . | . . . Total Damage . | . . . Kills . | . . . Allies Corrupted . | . . . Allies Melted . | . . . Intel | -11 -10 -9 ------- Run | Yrd Mat Mat Robot Analysis Total . | . . . Derelict Logs Recovered . | . . . Drone Launches . | . . . Drone Recoveries . | . . . Exploration | -11 -10 -9 ------------- Run | Yrd Mat Mat Turns Passed 1475 | 91 592 792 Spaces Moved 481 | 76 247 158 Core 24 | 23 . 1 Treads . | . . . Legs 455 | 53 247 155 Wheels . | . . . Hover 2 | . . 2 Flight . | . . . Fastest Speed 50 | 50 120 120 Average Speed 256 | 98 197 425 Slowest Speed 1400 | 120 400 1400 Overloaded Moves . | . . . Propulsion Burnouts . | . . . Robots Hopped . | . . . Cave-ins Triggered . | . . . Exploration Rate (%) 16 | 6 33 10 Regions Visited 2 Branch Regions . Pre-discovered Areas . | . . . Known Exits Taken . | . . . Unknown Exits Taken 2 | 1 1 . Scrap Searched . | . . . Spaces Dug . | . . . Terrain Destroyed 1 | . 1 . Melee . | . . . Projectile . | . . . AOE 1 | . 1 . Terrain Rammed . | . . . Walls Destroyed . | . . . Machines Disabled . | . . . Actions | -11 -10 -9 --------- Run | Yrd Mat Mat Total 591 | 88 298 205 Wait . | . . . Move 479 | 75 246 158 Hop . | . . . Pick Up 18 | 6 8 4 Fast Attach . | . . . Attach 13 | 5 2 6 Detach . | . . . Swap 9 | . 4 5 Drop 5 | . 4 1 Fire 65 | 2 33 30 Melee . | . . . Ram . | . . . Kick 2 | . 1 1 Crush . | . . . Escape Stasis . | . . . Rewire . | . . . Trap . | . . . Miscellaneous . | . . . Route ------- -11/Scrapyard -10/Materials -9/Materials History --------- Turn | Location | Event 2 | -11/Scrapyard | Met Revision 17 72 | -11/Scrapyard | Discovered new exit (range 8) 92 | -11/Scrapyard | Entered Materials 307 | -10/Materials | Build established: Mutant 457 | -10/Materials | Discovered new exit (range 5) 684 | -10/Materials | Entered another Materials area 684 | -9/Materials | Evolved 2 slots: Weapon x2 747 | -9/Materials | Repaired Ion Engine 1013 | -9/Materials | Build established: Scavenger-Tank 1449 | -9/Materials | Core integrity fell below 50% 1464 | -9/Materials | Core integrity fell below 20% 1476 | -9/Materials | Destroyed by L-31 Rogue with Katana Last Messages --------------- R-06 Scavenger collects Heat Sink. R-06 Scavenger collects Particle Gun. R-06 Scavenger collects Sensor Array. R-06 Scavenger collects Lgt. Nuclear Core. W-16 Scout distress signal alerts nearby ally. Broken Aluminum Leg destroyed. Lgt. Ion Engine severed. Aluminum Leg severed. Sml. Laser destroyed. Lgt. Assault Rifle destroyed. R-06 Scavenger collects Lgt. Ion Engine. R-06 Scavenger collects Aluminum Leg. Sml. Battery destroyed. Lgt. Ion Engine destroyed. R-06 Scavenger collects Sml. Matter Pod. R-06 Scavenger collects Ion Engine. Hover Unit severed. R-06 Scavenger collects Heat Sink. Critical hit (Burn: +37). R-06 Scavenger collects Ion Engine. Map ----- +----------------------------------------------------+ | | | | | | | | | ?????????????????????????????????????????????????? | | ?????????????????????????????????????????????????? | | ?????????????????????????????????????????????????? | | ?##########???########???????????????????????????? | | ?# ! +??? +???????????????????????????? | | ?# #???# #???????????????????????????? | | ## #???# #####???????????????????????? | | # "" #???# ????????????????????????? | | "# """ #???# ?????????????????????????? | | "# S" #???# #??????????????????????????? | | "# """ #???# #??????????????????????????? | | # """ #???# #??????????????????????????? | | # ##### #??????????????????????????? | | ######+#### # #??????????????????????????? | | ! %% + ""??????????????????????? | | ### ### #??????????????????????????? | | #?##+##?# #??????????????????????????? | | #########???????# ##??????????????????????????? | | ????????????????# #########???????????????????? | | ????????????????# + #???????????????????? | | ????????????????# #% #???????????????????? | | ????????????????# # % @"""#???????????????????? | | ????????????????# # l """#???????????????????? | | ????????????????# # """#???????????????????? | | ??????????????? #w r """#???????????????????? | | ?????????????? # """#???????????????????? | | ????????????? # % #???????????????????? | | ???????????? ### ## = ### #???????????????? | | ??????????? ??# ## r %+% #???????????????? | | ?????????? ??# ## [%= #####???????????????? | | ????????? ???# ?###g#####???????????????????? | | ????????? ???# ???#%#???????????????????????? | | ??????????####????#+???# #???????????????????????? | | ???????????????????????# #???????????????????????? | | ???????????????????????# #???????????????????????? | | ???????????????????????# #???????????????????????? | | ???????????????????????# #???????????????????????? | | ???????????????????????# #???????????????????????? | | ???????????????????????? ????????????????????????? | | ???????????????????????? ????????????????????????? | | ???????????????????????? ????????????????????????? | | ???????????????????????? ????????????????????????? | | ???????????????????????? ????????????????????????? | | ???????????????????????? ????????????????????????? | | ????????????????????????#????????????????????????? | | ?????????????????????????????????????????????????? | +----------------------------------------------------+ Best States ------------- Heat Dissipation 28 Energy Generation 10 Energy Capacity 350 Matter Stores 300 Matter Capacity 300 Sight Range 16 Terrain Scan Density 10 Armor Coverage 80 Resistance: KI 20 Resistance: TH 20 Resistance: EX 20 Resistance: EM 20 Resistance: I 20 Resistance: S 20 Resistance: P 20 Evasion (%) 55 Offensive Hacking 10 Item Schematics ----------------- None Robot Schematics ------------------ None Fabricated ------------ Nothing Alien Tech Used ----------------- None Achievements -------------- None Challenges ------------ None Game ------ Seed ThermoelectricLinkedRouter Manual? 0 Play Time 00:15:55 Cumulative 1.1 hours Start 2024.04.19 @ 21:05:10 End 2024.04.19 @ 21:18:52 Sessions 1 Manual Loads 0 Difficulty Adventurer Special Mode None Game No. 3 Rogue 0 Adventurer 3 Explorer 0 Win Type - Total 0 Types 0/0/0/0/0/0/0/0/0 Lore% 1 Gallery% 3 Achievement% 5 Wizard Run 0 Options --------- Layout 1 ASCII 0 Keyboard 0 Movement Arrows Keybinds 0 Fullscreen 1 Font 48/Smallcaps Map View 50x35 Zoom Use 0% Tactical HUD 0 Map Filters NONE Filters NONE Steam 1 RUN: 33f0a0b6-06bb-41c4-bba2-eecf5f92b156